lending/lending_fUSD_20251021
["ID","MTS","AMOUNT","RATE_DAILY","PERIOD"]
[391949175,1761021920182,150.0,0.00013488,2]
[391949176,1761021920295,150.0,0.00013488,2]
[391949177,1761021920338,150.0,0.00013488,2]
[391949178,1761021921688,150.0,0.00013488,2]
[391949179,1761021927343,150.00000001,0.00013488,2]
[391949180,1761021928392,150.0,0.00013488,2]
[391949181,1761021928496,150.0,0.00013488,2]
[391949182,1761021929018,150.0,0.00013488,2]
[391949183,1761021985322,-1350.33,0.00014319,2]
[391949184,1761021985344,-545.0382072,0.00014584,2]
[391949185,1761021985366,-1350.33,0.00014849,2]
[391949186,1761021985388,-300.0,0.00014899,2]
[391949187,1761021985409,-195.24867075,0.000149,2]
[391949188,1761021985430,-240.59695596,0.000149,2]
[391949189,1761021985451,-18.45616609,0.000149,2]
[391949190,1761021987189,-818.65827966,0.000149,2]
[391949191,1761021987212,-182.07407475,0.000149,2]
[391949192,1761021987240,-502.87642689,0.000149,2]
[391949193,1761021987265,-1121.23542021,0.000149,2]
[391949194,1761021987289,-150.0,0.00014986,2]
[391949195,1761021987313,-207.60310393,0.0001499,2]
[391949196,1761021987335,-475.39174292,0.00014999,5]
[391949197,1761021987355,-542.16095164,0.00014999,5]
[391949198,1761021988762,-476.68698411,0.00014999,5]
[391949199,1761021988783,-500.0,0.00014999,2]
[391949200,1761021988802,-227.36952778,0.00014999,2]
[391949201,1761021988823,-757.112,0.00014999,2]
[391949202,1761021988842,-150.0,0.00014999,2]
[391949203,1761021988864,-1888.83148811,0.00015,2]
[391949204,1761021990054,-4000.0,0.00015,2]
[391949205,1761021991932,-162.00228212,0.000149,2]
[391949206,1761021991955,-3837.99771788,0.00015,2]
[391949207,1761022009210,-950.0,0.00015,2]
[391949241,1761022231760,-500.0,0.00014219,2]
[391949242,1761022231770,-52.0,0.0001485,2]
[391949243,1761022231782,-565.0,0.0001485,2]
[391949244,1761022231794,-3506.09834,0.0001485,2]
[391949245,1761022231804,-300.0,0.00014899,2]
[391949246,1761022231814,-8743.24534233,0.000149,2]
[391949247,1761022231824,-1302.3576957,0.000149,2]
[391949248,1761022231834,-207.60310393,0.0001499,2]
[391949249,1761022231844,-150.0,0.00014999,2]
[391949250,1761022231855,-111875.80438826,0.00015,2]
[391949251,1761022231866,-34376.79116596,0.00015,2]
[391949252,1761022231878,-879.1401216,0.00015,2]
[391949253,1761022231889,-1082.7,0.00015,2]
[391949254,1761022231902,-78752.13358112,0.00015,2]
[391949255,1761022231932,-10812.0,0.00015,2]
[391949256,1761022231989,-852.179946,0.00015,2]
[391949304,1761022237667,-5272.87596406,0.00015,2]
[391949305,1761022237830,-2217.072792,0.00015,2]
[391949306,1761022237841,-292.88289617,0.00015,2]
[391949308,1761022237993,-6912.46168561,0.00015,2]
[391949310,1761022238005,-633.78643964,0.00015,2]
[391949311,1761022238018,-1211.9663296,0.00015,2]
[391949312,1761022238038,-987.40030888,0.00015,2]
[391949321,1761022239736,-222080.43644405,0.00015,2]
[391949322,1761022239847,-4446.03693848,0.00015,2]
[391949323,1761022239859,-4368.65980068,0.00015,2]
[391949324,1761022239870,-4128.63986883,0.00015,2]
[391949325,1761022239880,-4432.26839026,0.00015,2]
[391949326,1761022239891,-16569.89875697,0.00015,2]
[391949327,1761022239903,-1363.68834929,0.00015,2]
[391949328,1761022239916,-14896.46297549,0.00015,2]
[391949329,1761022239928,-3829.98099585,0.00015,2]
[391949330,1761022239940,-17539.04528594,0.00015,2]
[391949331,1761022239954,-30697.64954253,0.00015,2]
[391949332,1761022239974,-1582.4540178,0.00015,2]
[391949356,1761022242762,-36663.98390493,0.00015,2]
[391949357,1761022242773,-54071.61999998,0.00015,2]
[391949358,1761022242818,-7905.65161828,0.00015,2]
[391949359,1761022242982,-115750.93986271,0.00015,2]
[391949360,1761022243041,-386599.999998,0.00015,2]
[391949361,1761022243055,-29187.0,0.00015,2]
[391949365,1761022246294,-356.6800002,0.00015,2]
[391949366,1761022246305,-871.87162717,0.00015,2]
[391949367,1761022246320,-286.6,0.00015,2]
[391949368,1761022246342,-260.59665842,0.00015,2]
[391949369,1761022246353,-3871.0,0.00015,2]
[391949370,1761022246364,-7743.67121945,0.00015,2]
[391949371,1761022246379,-3119.30181888,0.00015,2]
[391949373,1761022248685,261.16,0.00013699,2]
[391949377,1761022269907,-200.0,0.00014219,2]
[391949378,1761022269929,-85.78371034,0.00014389,2]
[391949406,1761022700067,526.29684487,0.0003013,120]
[391949434,1761023431913,-945.0,0.00014477,2]
[391949435,1761023431928,-3236.4,0.00014477,2]
[391949436,1761023431969,-741.95,0.00014477,2]
[391949437,1761023431980,-150.0,0.00014482,2]
[391949438,1761023431991,-286.0,0.00014545,2]
[391949439,1761023432000,-300.0,0.00014545,2]
[391949440,1761023432010,-1200.0,0.00014545,2]
[391949441,1761023432019,-200.0,0.00014686,2]
[391949442,1761023432028,-829.9874415,0.00014771,2]
[391949443,1761023432038,-1200.0,0.00014847,2]
[391949444,1761023432048,-197.69809654,0.000149,2]
[391949445,1761023432058,-1748.79667216,0.000149,2]
[391949446,1761023432068,-160.76716901,0.000149,2]
[391949447,1761023432077,-181.11341666,0.000149,2]
[391949448,1761023432087,-170.76065951,0.000149,2]
[391949449,1761023432096,-1000.0,0.00014924,2]
[391949450,1761023432107,-150.0,0.00014972,2]
[391949451,1761023432119,-501.28387655,0.00014973,2]
[391949452,1761023432129,-500.0,0.00014973,2]
[391949453,1761023432142,-500.0,0.00014973,2]
[391949454,1761023432153,-500.0,0.00014973,2]
[391949455,1761023432163,-501.44602382,0.00014973,2]
[391949456,1761023432173,-500.0,0.00014973,2]
[391949457,1761023432185,-500.0,0.00014973,2]
[391949458,1761023432205,-358.26510893,0.00014973,2]
[391949459,1761023432216,-501.80992451,0.00014973,2]
[391949460,1761023432226,-500.0,0.00014973,2]
[391949461,1761023432235,-500.0,0.00014973,2]
[391949462,1761023432245,-2111.7453554,0.00014998,2]
[391949463,1761023432260,-700.0,0.00014998,2]
[391949464,1761023432279,-1924.9253263,0.00014998,2]
[391949465,1761023432289,-4961.9964456,0.00014998,2]
[391949466,1761023432299,-500.0,0.00014999,2]
[391949467,1761023432309,-500.0,0.00014999,2]
[391949468,1761023432319,-500.0,0.00014999,2]
[391949469,1761023432329,-500.0,0.00014999,2]
[391949470,1761023432338,-500.0,0.00014999,2]
[391949471,1761023432348,-463.28412974,0.00014999,2]
[391949472,1761023432359,-794.781,0.00014999,2]
[391949473,1761023432368,-177.381,0.00014999,2]
[391949474,1761023432378,-221765.68698896,0.00015,2]
[391949475,1761023432387,-816691.76940431,0.00015,2]
[391949476,1761023432397,-7394.74214578,0.00015,2]
[391949477,1761023432406,-162.0,0.00015,2]
[391949479,1761023432415,-151.0,0.00015,2]
[391949480,1761023432424,-151.0,0.00015,2]
[391949481,1761023432433,-3917.00625,0.00015,2]
[391949482,1761023432442,-151.0,0.00015073,2]
[391949483,1761023432452,-151.0,0.00015074,2]
[391949484,1761023432461,-151.0,0.00015078,2]
[391949486,1761023432471,-6515.8624978,0.00015197,2]
[391949488,1761023432481,-1350.33,0.0001538,2]
[391949490,1761023432490,-2500.54,0.00015497,2]
[391949492,1761023432499,-250.0,0.0001552,7]
[391949494,1761023432509,-500.0,0.00015521,2]
[391949496,1761023432520,-500.0,0.00015521,2]
[391949498,1761023432529,-170.05484914,0.00015571,2]
[391949499,1761023432539,-500.0,0.00015571,2]
[391949500,1761023432553,-503.86292689,0.00015571,2]
[391949501,1761023432563,-500.0,0.00015571,2]
[391949503,1761023432572,-500.0,0.00015571,2]
[391949504,1761023432582,-501.05311295,0.00015571,2]
[391949506,1761023432591,-500.0,0.00015571,2]
[391949508,1761023432600,-2211.48715553,0.00015807,2]
[391949510,1761023432610,-1350.33,0.0001591,2]
[391949512,1761023432619,-300.0,0.00015924,2]
[391949514,1761023432628,-420.0,0.00015926,2]
[391949516,1761023432637,-816.0,0.00015999,2]
[391949518,1761023432647,-190.0,0.00016094,2]
[391949520,1761023432656,-183.85123454,0.00016119,2]
[391949522,1761023432665,-5000.00182104,0.000162,5]
[391949524,1761023432675,-2429.0,0.00016438,2]
[391949526,1761023432684,-223.74,0.00016438,2]
[391949528,1761023432693,-1350.33,0.0001644,2]
[391949530,1761023432702,-1000.0,0.00016789,2]
[391949532,1761023432711,-1107.1710615,0.00016898,2]
[391949534,1761023432721,-1350.33,0.00016971,2]
[391949536,1761023432730,-250.0,0.00017,2]
[391949538,1761023432740,-3917.00625,0.00017,2]
[391949541,1761023432750,-338.34960746,0.00017032,2]
[391949543,1761023432763,-1410.44706465,0.00017032,2]
[391949545,1761023432772,-181.11341664,0.00017042,2]
[391949547,1761023432781,-247.0432562,0.00017321,2]
[391949549,1761023432790,-0.23901241,0.00017438,2]
[391949551,1761023432802,-586.76098759,0.00017438,2]
[391949553,1761023432811,-321.59268532,0.000175,2]
[391949554,1761023432821,-1350.33,0.00017501,2]
[391949555,1761023432830,-166.66,0.00017588,2]
[391949556,1761023432840,-166.66,0.00017958,2]
[391949557,1761023432849,-1350.33,0.00018031,2]
[391949558,1761023432859,-197.69809653,0.00018117,2]
[391949559,1761023432869,-1140.41238596,0.0001817,2]
[391949560,1761023432879,-250.0,0.00018266,2]
[391949561,1761023432889,-166.66,0.00018328,2]
[391949562,1761023432898,-1350.33,0.00018562,2]
[391949563,1761023432908,-1000.0,0.00018655,2]
[391949564,1761023432917,-166.66,0.00018698,2]
[391949565,1761023432930,-160.0874055,0.00018973,2]
[391949566,1761023432939,-277.94758032,0.0001899,2]
[391949567,1761023432949,-150.64,0.0001899,2]
[391949568,1761023432958,-797.31195282,0.00019,2]
[391949569,1761023432968,-206.71127124,0.00019,2]
[391949570,1761023432978,-132278.07727244,0.00019,2]
[391949571,1761023432987,-3917.00626,0.00019,2]
[391949572,1761023432998,-166.66,0.00019069,2]
[391949573,1761023433008,-1350.33,0.00019092,2]
[391949574,1761023433018,-823.0,0.00019094,2]
[391949575,1761023433028,-475.82771539,0.00019148,2]
[391949576,1761023433040,-1748.79667211,0.00019165,2]
[391949577,1761023433191,-181.11341664,0.00019184,2]
[391949578,1761023433202,-166.66,0.00019439,2]
[391949579,1761023433211,-1350.33,0.00019622,2]
[391949580,1761023433221,-1949.0,0.000197,2]
[391949581,1761023433233,-400.4,0.00019726,2]
[391949582,1761023433243,-1350.33,0.00020153,2]
[391949583,1761023433252,-261.16,0.00020187,2]
[391949584,1761023433263,-1000.0,0.0002052,2]
[391949585,1761023433274,-357.0,0.00020906,2]
[391949586,1761023433283,-1000.0,0.0002097,2]
[391949587,1761023433292,-3917.00625,0.00021,2]
[391949588,1761023433302,-198.86,0.00021188,2]
[391949589,1761023433312,-1000.0,0.0002127,2]
[391949590,1761023433321,-1000.0,0.0002127,2]
[391949591,1761023433331,-1748.79667211,0.00021297,2]
[391949592,1761023433340,-181.11341664,0.00021326,2]
[391949593,1761023433349,-197.69809653,0.00021334,2]
[391949594,1761023433359,-200.0,0.00021558,2]
[391949595,1761023433368,-2500.54,0.00021696,2]
[391949596,1761023433378,-500.0,0.00021917,2]
[391949597,1761023433388,-500.0,0.00021917,2]
[391949598,1761023433403,-500.0,0.00021917,2]
[391949599,1761023433415,-500.0,0.00021917,2]
[391949600,1761023433424,-500.0,0.00021917,2]
[391949601,1761023433434,-5000.0,0.00021918,2]
[391949602,1761023433444,-162.41,0.00022,2]
[391949603,1761023433453,-1000.0,0.00022385,2]
[391949604,1761023433464,-3914.59538691,0.00023,2]
[391949605,1761023433732,-2.41087309,0.00023,2]
[391949606,1761023433743,-1748.79667211,0.00023429,2]
[391949607,1761023433753,-181.11341664,0.00023468,2]
[391949608,1761023433763,-532.87,0.00023836,2]
[391949609,1761023433773,-3339.0,0.00024138,2]
[391949610,1761023433786,-277.92949405,0.00024378,2]
[391949611,1761023433795,-197.69809653,0.00024551,2]
[391949612,1761023433806,-213.61412891,0.00024606,2]
[391949613,1761023433815,-208.4,0.00024658,2]
[391949614,1761023433825,-1000.0,0.00024658,2]
[391949615,1761023433835,-150.64,0.0002479,2]
[391949616,1761023433844,-68502.92413785,0.000248,3]
[391949617,1761023433856,-39133.88862949,0.000248,3]
[391949618,1761023433867,-875.88927357,0.000248,3]
[391949619,1761023433879,-540.54,0.000248,3]
[391949620,1761023433890,-258.38525471,0.000248,3]
[391949621,1761023433902,-1925.0,0.000248,3]
[391949628,1761023437817,-2911.08992909,0.000149,2]
[391949629,1761023437832,-296.26719805,0.0002479,2]
[391949630,1761023437847,-228.66690578,0.0002479,2]
[391949631,1761023437862,-35113.97596648,0.000248,3]
[391949632,1761023437880,-108000.0,0.000248,3]
[391949633,1761023437898,-2157.65964723,0.000248,3]
[391949634,1761023437924,-522.32199885,0.000248,3]
[391949635,1761023437981,-278.29072589,0.000248,3]
[391949636,1761023437998,-662.671405,0.000248,3]
[391949641,1761023438082,-949.51472074,0.000248,3]
[391949642,1761023438102,-5192.46197897,0.000248,3]
[391949643,1761023438118,-1209.8373207,0.000248,3]
[391949644,1761023438133,-504.78443375,0.000248,3]
[391949645,1761023438146,-5390.5,0.000248,3]
[391949647,1761023439905,-2003.62431401,0.00017032,2]
[391949648,1761023439920,-540.2,0.00017032,2]
[391949649,1761023439936,-367.26561503,0.00017032,2]
[391949650,1761023439950,-47.56588497,0.000248,3]
[391949651,1761023439965,-5073.2473628,0.000248,3]
[391949652,1761023439976,-150.64,0.0002489,2]
[391949653,1761023439989,-45108.57180023,0.000249,3]
[391949654,1761023440042,-640.73889081,0.000249,3]
[391949656,1761023440279,-45712.1169239,0.000249,3]
[391949657,1761023440294,-1678.677483,0.000249,3]
[391949659,1761023440309,-1080.5795,0.000249,3]
[391949661,1761023440322,-701.16931741,0.000249,3]
[391949664,1761023440357,-138487.32424365,0.000249,3]
[391949665,1761023440367,-3917.00625,0.00025,2]
[391949666,1761023440594,-795.775,0.00025154,2]
[391949667,1761023440613,-786.0,0.00025154,2]
[391949668,1761023440623,-1421.406,0.00025154,2]
[391949669,1761023440632,-746.266,0.00025154,2]
[391949670,1761023440641,-580.202,0.00025154,2]
[391949671,1761023440649,-424.512,0.00025154,2]
[391949672,1761023440658,-161.44,0.000253,2]
[391949673,1761023440667,-1748.79667211,0.00025562,2]
[391949674,1761023440677,-181.11341664,0.0002561,2]
[391949675,1761023440686,-168.0,0.00025623,2]
[391949676,1761023440695,-449.0,0.00025695,2]
[391949677,1761023440703,-168.0,0.00025716,2]
[391949678,1761023440713,-449.0,0.00025927,7]
[391949679,1761023440722,-160.44,0.00026,2]
[391949680,1761023440731,-168.0,0.00026106,2]
[391949681,1761023440741,-168.0,0.00026127,2]
[391949682,1761023440752,-449.0,0.00026297,2]
[391949683,1761023440761,-168.0,0.00026318,2]
[391949684,1761023440770,-168.0,0.00026574,2]
[391949685,1761023440779,-168.0,0.00026665,2]
[391949686,1761023440788,-449.0,0.00026671,2]
[391949687,1761023440798,-261.16,0.00026676,2]
[391949688,1761023440807,-968.01019745,0.000269,2]
[391949689,1761023440817,-168.0,0.00026908,2]
[391949690,1761023440826,-449.0,0.00026949,2]
[391949691,1761023440835,-449.0,0.00027134,2]
[391949692,1761023440844,-168.0,0.00027325,2]
[391949693,1761023440853,-168.0,0.00027358,2]
[391949694,1761023440862,-1000.0,0.0002737,2]
[391949695,1761023440872,-226.07,0.00027397,30]
[391949696,1761023440882,-304.96,0.000274,7]
[391949697,1761023440891,-477.64,0.000274,2]
[391949698,1761023440900,-151.0,0.000274,30]
[391949699,1761023440909,-151.0,0.000274,30]
[391949700,1761023440918,-151.0,0.000274,30]
[391949701,1761023440927,-151.0,0.000274,30]
[391949702,1761023440936,-168.0,0.00027614,2]
[391949703,1761023440945,-151.0,0.00027676,30]
[391949704,1761023440954,-151.0,0.00027676,30]
[391949705,1761023440963,-151.0,0.00027676,30]
[391949706,1761023440972,-278.240764,0.00027676,30]
[391949707,1761023440981,-235.16643,0.00027676,30]
[391949708,1761023440990,-152.199129,0.00027676,30]
[391949709,1761023441001,-151.0,0.00027676,30]
[391949710,1761023441014,-151.0,0.00027676,30]
[391949711,1761023441024,-151.0,0.00027676,30]
[391949712,1761023441033,-151.0,0.00027676,30]
[391949713,1761023441042,-151.0,0.00027676,30]
[391949714,1761023441052,-287.311669,0.00027676,30]
[391949715,1761023441061,-260.245038,0.00027676,30]
[391949716,1761023441071,-151.0,0.00027676,30]
[391949717,1761023441080,-151.0,0.00027676,30]
[391949718,1761023441090,-1784.0,0.00027676,5]
[391949719,1761023441099,-151.0,0.00027687,30]
[391949720,1761023441108,-151.0,0.00027687,30]
[391949721,1761023441119,-151.0,0.00027687,30]
[391949722,1761023441129,-151.0,0.00027687,30]
[391949723,1761023441139,-151.0,0.00027687,30]
[391949724,1761023441149,-157.206996,0.00027687,30]
[391949725,1761023441158,-153.245013,0.00027687,30]
[391949726,1761023441168,-151.0,0.00027687,30]
[391949727,1761023441177,-151.0,0.00027687,30]
[391949728,1761023441187,-451.0,0.0002769,2]
[391949729,1761023441201,-151.0,0.0002769,30]
[391949730,1761023441211,-151.0,0.0002769,30]
[391949731,1761023441220,-237.85439032,0.0002769,30]
[391949732,1761023441230,-163.856577,0.0002769,30]
[391949733,1761023441241,-1748.79667211,0.00027694,2]
[391949734,1761023441251,-451.0,0.00027701,7]
[391949735,1761023441261,-449.0,0.00027716,2]
[391949736,1761023441271,-181.11341664,0.00027752,2]
[391949737,1761023441280,-197.69809653,0.00027768,2]
[391949738,1761023441290,-168.0,0.00027834,2]
[391949739,1761023441299,-168.0,0.00027923,2]
[391949740,1761023441309,-168.0,0.00028081,2]
[391949741,1761023441318,-168.0,0.00028186,2]
[391949742,1761023441328,-168.0,0.00028192,2]
[391949743,1761023441337,-1568.96,0.00028551,2]
[391949744,1761023441347,-150.0,0.00028767,2]
[391949745,1761023441357,-1852.42,0.0002922,2]
[391949746,1761023441367,-6190.25,0.00029278,2]
[391949747,1761023441376,-700.0,0.00029394,7]
[391949748,1761023441387,-500.0,0.00029394,7]
[391949749,1761023441400,-500.0,0.00029394,7]
[391949750,1761023441411,-604.47822964,0.00029394,7]
[391949751,1761023441420,-500.0,0.00029394,7]
[391949752,1761023441429,-500.0,0.00029394,7]
[391949753,1761023441439,-583.75675892,0.00029394,7]
[391949754,1761023441448,-500.0,0.00029394,7]
[391949755,1761023441458,-500.0,0.00029394,7]
[391949756,1761023441467,-500.0,0.00029394,7]
[391949757,1761023441477,-500.0,0.00029394,7]
[391949758,1761023441487,-500.0,0.00029394,7]
[391949759,1761023441497,-500.0,0.00029394,7]
[391949760,1761023441510,-500.0,0.00029394,7]
[391949761,1761023441520,-500.0,0.00029394,7]
[391949762,1761023441530,-600.0,0.00029394,7]
[391949763,1761023441539,-500.0,0.00029394,7]
[391949764,1761023441549,-881.16822524,0.00029394,7]
[391949765,1761023441559,-500.0,0.00029394,7]
[391949766,1761023441568,-500.0,0.00029394,7]
[391949767,1761023441578,-947.23687126,0.00029394,7]
[391949768,1761023441593,-513.69910083,0.00029394,7]
[391949769,1761023441603,-706.45115207,0.00029394,7]
[391949770,1761023441612,-254.53,0.00029394,7]
[391949771,1761023441622,-164.77,0.00029536,2]
[391949772,1761023441632,-254.53,0.00029668,7]
[391949773,1761023441641,-1748.79667211,0.00029826,2]
[391949774,1761023441651,-181.11341664,0.00029894,15]
[391949775,1761023441661,-254.53,0.00029942,7]
[391949776,1761023441670,-477.64,0.0003,2]
[391949777,1761023441680,-151.81,0.00030069,2]
[391949778,1761023441690,-304.96,0.000301,7]
[391949779,1761023441700,-10000.0,0.00030136,2]
[391949780,1761023441710,-254.53,0.00030216,7]
[391949781,1761023441721,-203.07,0.00030364,5]
[391949782,1761023441732,-656.36,0.00030407,2]
[391949783,1761023441742,-254.56,0.0003049,7]
[391949784,1761023441753,-197.69809653,0.00030985,2]
[391949785,1761023441764,-10000.0,0.00031506,7]
[391949786,1761023441774,-152.0,0.00031524,3]
[391949787,1761023441784,-999.0,0.000316,2]
[391949788,1761023441795,-915.0,0.000316,2]
[391949789,1761023441805,-176.18,0.00031836,2]
[391949790,1761023441815,-1748.79667211,0.00031959,2]
[391949791,1761023441824,-5746.4655213,0.00032,120]
[391949792,1761023441834,-974.70008202,0.00032,5]
[391949793,1761023441843,-190.19926576,0.00032,120]
[391949794,1761023441853,-206.34320081,0.00032,120]
[391949795,1761023441862,-181.11341664,0.00032036,15]
[391949796,1761023441871,-311.0,0.0003232,2]
[391949797,1761023441881,-226.07,0.00032379,30]
[391949798,1761023441891,-500.0,0.00032536,7]
[391949799,1761023441900,-900.0,0.00032536,7]
[391949800,1761023441910,-484.54244796,0.00032776,2]
[391949801,1761023441920,-337.03444612,0.00032776,2]
[391949802,1761023441930,-150.64,0.00032866,2]
[391949803,1761023441939,-500.65530496,0.00032873,5]
[391949804,1761023441949,-666.0,0.00032875,10]
[391949805,1761023441962,-500.0,0.00032875,2]
[391949806,1761023441971,-500.0,0.00032875,2]
[391949807,1761023441981,-500.0,0.00032875,2]
[391949808,1761023441991,-500.0,0.00032875,2]
[391949809,1761023442002,-500.0,0.00032875,2]
[391949810,1761023442012,-500.0,0.00032875,2]
[391949811,1761023442022,-500.0,0.00032875,2]
[391949812,1761023442031,-500.0,0.00032875,2]
[391949813,1761023442042,-500.0,0.00032875,2]
[391949814,1761023442053,-500.0,0.00032875,2]
[391949815,1761023442063,-486.661069,0.00032876,14]
[391949816,1761023442072,-486.661069,0.00032876,14]
[391949817,1761023442082,-511.18096119,0.00032876,14]
[391949818,1761023442092,-500.0,0.00032876,14]
[391949819,1761023442103,-500.0,0.00032876,14]
[391949820,1761023442113,-500.0,0.00032876,14]
[391949821,1761023442123,-500.0,0.00032876,14]
[391949822,1761023442133,-500.0,0.00032876,14]
[391949823,1761023442143,-500.0,0.00032876,14]
[391949824,1761023442156,-500.0,0.00032876,14]
[391949825,1761023442166,-505.26716668,0.00032876,14]
[391949826,1761023442176,-500.0,0.00032876,14]
[391949827,1761023442186,-500.0,0.00032876,14]
[391949828,1761023442200,-506.79351512,0.00032876,14]
[391949829,1761023442209,-500.0,0.00032876,14]
[391949830,1761023442220,-500.0,0.00032876,14]
[391949831,1761023442231,-500.0,0.00032876,14]
[391949832,1761023442242,-628.89057213,0.00032876,14]
[391949833,1761023442252,-500.0,0.00032876,14]
[391949834,1761023442262,-500.0,0.00032876,14]
[391949835,1761023442271,-254.99241778,0.00032876,14]
[391949836,1761023442284,-500.0,0.00032876,2]
[391949837,1761023442294,-500.0,0.00032876,2]
[391949838,1761023442303,-500.0,0.00032876,2]
[391949839,1761023442314,-500.0,0.00032876,2]
[391949840,1761023442324,-500.0,0.00032876,2]
[391949841,1761023442334,-500.0,0.00032876,2]
[391949842,1761023442343,-500.0,0.00032876,2]
[391949843,1761023442356,-500.0,0.00032876,2]
[391949844,1761023442366,-500.0,0.00032876,2]
[391949845,1761023442375,-500.0,0.00032876,2]
[391949846,1761023442385,-284.61380605,0.00032876,2]
[391949847,1761023442394,-500.0,0.00032876,14]
[391949848,1761023442403,-500.0,0.00032876,14]
[391949849,1761023442413,-500.0,0.00032876,14]
[391949850,1761023442422,-500.0,0.00032876,14]
[391949851,1761023442431,-500.0,0.00032876,14]
[391949852,1761023442441,-500.0,0.00032876,14]
[391949853,1761023442450,-500.0,0.00032876,14]
[391949854,1761023442459,-500.0,0.00032876,14]
[391949855,1761023442468,-500.0,0.00032876,14]
[391949856,1761023442478,-162.40114493,0.00032876,14]
[391949857,1761023442488,-500.0,0.00032876,14]
[391949858,1761023442497,-500.0,0.00032876,14]
[391949859,1761023442508,-500.0,0.00032876,14]
[391949860,1761023442517,-500.0,0.00032876,14]
[391949861,1761023442527,-500.0,0.00032876,14]
[391949862,1761023442537,-500.0,0.00032876,14]
[391949863,1761023442547,-511.33857682,0.00032876,14]
[391949864,1761023442556,-504.13531375,0.00032876,14]
[391949865,1761023442565,-501.35540989,0.00032876,14]
[391949866,1761023442575,-500.0,0.00032876,14]
[391949867,1761023442584,-500.0,0.00032876,14]
[391949868,1761023442594,-500.0,0.00032876,14]
[391949869,1761023442603,-500.0,0.00032876,14]
[391949870,1761023442612,-500.0,0.00032876,14]
[391949871,1761023442622,-325.80066508,0.00032876,14]
[391949872,1761023442632,-503.46090574,0.00032876,14]
[391949874,1761023442641,-500.0,0.00032876,14]
[391949875,1761023442651,-511.51784182,0.00032876,14]
[391949876,1761023442661,-501.07753933,0.00032876,14]
[391949877,1761023442670,-500.0,0.00032876,14]
[391949878,1761023442680,-510.26254079,0.00032876,14]
[391949880,1761023442690,-500.0,0.00032876,14]
[391949882,1761023442700,-509.3766242,0.00032876,14]
[391949883,1761023442710,-500.0,0.00032876,14]
[391949884,1761023442719,-508.3848492,0.00032876,14]
[391949885,1761023442729,-500.0,0.00032876,14]
[391949886,1761023442749,-500.0,0.00032876,14]
[391949887,1761023442761,-500.0,0.00032876,14]
[391949888,1761023442771,-500.0,0.00032876,14]
[391949889,1761023442780,-500.0,0.00032876,14]
[391949890,1761023442790,-504.13569286,0.00032876,14]
[391949891,1761023442800,-509.87290605,0.00032876,14]
[391949892,1761023442809,-511.64888657,0.00032876,14]
[391949893,1761023442819,-199.0456134,0.00032876,14]
[391949894,1761023442829,-500.0,0.00032876,14]
[391949895,1761023442838,-500.0,0.00032876,2]
[391949896,1761023442848,-500.0,0.00032876,2]
[391949897,1761023442857,-500.0,0.00032876,2]
[391949898,1761023442867,-500.0,0.00032876,2]
[391949899,1761023442877,-500.0,0.00032876,2]
[391949900,1761023442887,-500.0,0.00032876,2]
[391949901,1761023442897,-500.0,0.00032876,2]